bitfinex/quotes_BTCUSD_20250421
["timestamp","ask_amount","ask_price","bid_price","bid_amount"]
[1745264791004,4.001e-05,87257.0,87256.0,0.27975988]
[1745264791686,0.01306599,87257.0,87256.0,0.27675988]
[1745264791893,4.001e-05,87257.0,87256.0,0.27875988]
[1745264792117,0.01306599,87257.0,87256.0,0.27875988]
[1745264792324,4.001e-05,87257.0,87256.0,0.27875988]
[1745264792933,0.01303266,87257.0,87256.0,0.27875988]
[1745264793122,0.01303266,87257.0,87256.0,0.27675988]
[1745264793506,0.01303266,87257.0,87256.0,0.27775988]
[1745264794246,0.01303266,87257.0,87256.0,0.27675988]
[1745264794393,0.01303266,87257.0,87256.0,0.27775988]
[1745264794814,0.01303266,87257.0,87236.0,0.0109068]
[1745264794815,0.2406838,87252.0,87245.0,0.22923765]
[1745264795148,0.2406838,87252.0,87247.0,0.22923397]
[1745264795149,0.01298927,87251.0,87247.0,0.22923397]
[1745264795364,0.24068767,87250.0,87247.0,0.22923397]
[1745264795721,0.2406838,87252.0,87251.0,0.04754929]
[1745264796862,0.24068215,87252.0,87251.0,0.04754929]
[1745264797402,0.22923161,87248.0,87247.0,0.001]
[1745264797613,0.22923161,87248.0,87247.0,0.04854929]
[1745264797741,0.22923161,87248.0,87247.0,0.001]
[1745264797952,0.22923161,87248.0,87247.0,0.04854929]
[1745264798565,0.24071622,87240.0,87237.0,0.22971912]
[1745264798772,0.24071622,87240.0,87238.0,0.04754929]
[1745264798976,0.24071622,87240.0,87239.0,0.04754929]
[1745264799213,0.22925609,87239.0,87237.0,0.00045887]
[1745264799668,0.01146263,87240.0,87239.0,0.04754929]
[1745264799835,0.24071682,87240.0,87237.0,0.00045887]
[1745264800050,0.22925723,87239.0,87237.0,0.00045887]
[1745264800327,0.01146263,87240.0,87239.0,0.04754929]
[1745264800677,0.24071716,87240.0,87237.0,0.00045887]
[1745264800876,0.24071583,87240.0,87237.0,0.22971849]
[1745264801281,0.22925789,87238.0,87237.0,0.00045887]
[1745264802028,0.22925703,87239.0,87237.0,0.00045887]
[1745264802795,0.22925703,87239.0,87238.0,0.04754929]
[1745264803013,0.47221297,87239.0,87237.0,0.00045887]
[1745264803224,0.11375594,87238.0,87237.0,0.00045887]
[1745264803402,0.36795594,87238.0,87237.0,0.00045887]
[1745264804654,0.73490922,87238.0,87237.0,0.00045887]
[1745264804868,0.78310922,87238.0,87237.0,0.00045887]
[1745264805070,0.77756866,87238.0,87237.0,0.00045887]
[1745264805493,0.75615594,87238.0,87237.0,0.00045887]
[1745264806662,0.22932361,87213.0,87212.0,0.0008442]
[1745264806863,0.22932361,87213.0,87212.0,0.00098055]
[1745264807480,0.23932361,87213.0,87212.0,0.00098055]
[1745264807681,0.22932361,87213.0,87212.0,0.00098055]
[1745264807875,0.22932361,87213.0,87212.0,0.04852984]
[1745264808162,0.24023955,87213.0,87212.0,0.04852984]
[1745264808317,0.24023955,87213.0,87212.0,0.00098055]
[1745264808752,0.35399549,87213.0,87212.0,0.00098055]
[1745264809486,0.36399549,87213.0,87212.0,0.00098055]
[1745264810965,0.37645164,87213.0,87212.0,0.00098055]
[1745264812880,0.01245615,87213.0,87212.0,0.04852984]
[1745264813099,0.24177976,87213.0,87212.0,0.04852984]
[1745264816019,0.01245615,87213.0,87212.0,0.27785607]
[1745264816591,0.01245615,87213.0,87212.0,0.04852984]
[1745264817642,0.24177976,87213.0,87212.0,0.04852984]
[1745264823182,0.01245615,87213.0,87212.0,0.27785607]
[1745264823394,0.01245615,87213.0,87212.0,0.32405607]
[1745264823821,0.01245615,87213.0,87212.0,0.27785607]
[1745264823996,0.01245615,87213.0,87212.0,0.04852984]
[1745264824224,0.02459072,87213.0,87212.0,0.27785607]
[1745264824660,0.02463072,87213.0,87212.0,0.04852984]
[1745264824836,0.02463072,87213.0,87212.0,0.27785607]
[1745264825060,0.25395433,87213.0,87212.0,0.04852984]
[1745264825439,0.26395433,87213.0,87212.0,0.04852984]
[1745264826642,0.37771027,87213.0,87212.0,0.00098055]
[1745264828079,0.67188266,87213.0,87212.0,0.00098055]
[1745264829402,0.68257364,87213.0,87212.0,0.00098055]
[1745264830434,0.5688177,87213.0,87212.0,0.00098055]
[1745264832096,0.58023207,87213.0,87212.0,0.00098055]
[1745264832705,0.5588177,87213.0,87212.0,0.00098055]
[1745264832880,0.54812672,87213.0,87212.0,0.00098055]
[1745264833427,0.58029002,87213.0,87212.0,0.00098055]
[1745264837150,0.35096641,87213.0,87212.0,0.32435607]
[1745264837380,0.35096641,87213.0,87212.0,0.37515607]
[1745264837575,0.32952421,87213.0,87212.0,0.37515607]
[1745264837774,0.32952737,87213.0,87212.0,0.38615139]
[1745264837947,0.31880627,87213.0,87212.0,0.38615139]
[1745264838453,0.31880627,87213.0,87212.0,0.37515607]
[1745264839713,0.31880627,87213.0,87212.0,0.32535607]
[1745264840374,0.31880627,87213.0,87212.0,0.00298055]
[1745264840619,0.31880627,87213.0,87212.0,0.23230678]
[1745264840825,0.31880627,87213.0,87212.0,0.27985607]
[1745264841212,0.54812988,87213.0,87212.0,0.05052984]
[1745264841429,0.54812988,87213.0,87212.0,0.00298055]
[1745264841645,0.54812988,87213.0,87212.0,0.05052984]
[1745264841788,0.55885483,87213.0,87212.0,0.05052984]
[1745264842008,0.5589512,87213.0,87212.0,0.05052984]
[1745264843155,0.5589512,87213.0,87212.0,0.04952984]
[1745264846761,0.54822625,87213.0,87212.0,0.04952984]
[1745264847347,0.55895262,87213.0,87212.0,0.04952984]
[1745264848507,0.68270856,87213.0,87212.0,0.00198055]
[1745264849087,0.78898856,87213.0,87212.0,0.00198055]
[1745264849294,0.81044131,87213.0,87212.0,0.00198055]
[1745264850845,0.81044131,87213.0,87212.0,0.00098055]
[1745264852424,0.81882363,87213.0,87212.0,0.00098055]
[1745264853198,1.15882363,87213.0,87212.0,0.00098055]
[1745264853722,0.2293499,87203.0,87202.0,0.04521824]
[1745264853936,0.50517879,87203.0,87202.0,0.04521824]
[1745264854520,0.53735791,87203.0,87202.0,0.04521824]
[1745264854729,0.22935835,87200.0,87193.0,0.0008448]
[1745264854933,0.36935835,87200.0,87199.0,0.04521824]
[1745264855133,0.22936042,87199.0,87193.0,0.0008448]
[1745264855338,0.36936042,87199.0,87193.0,0.0008448]
[1745264855546,0.40153694,87199.0,87198.0,0.04586731]
[1745264855972,0.39211996,87199.0,87198.0,0.00064907]
[1745264856182,0.39211996,87199.0,87198.0,0.04586731]
[1745264858387,0.40324716,87199.0,87198.0,0.04586731]
[1745264859028,0.39211996,87199.0,87198.0,0.04586731]
[1745264859373,0.02275954,87199.0,87198.0,0.09166731]
[1745264859769,0.25211996,87199.0,87198.0,0.09166731]
[1745264859976,0.01203577,87199.0,87198.0,0.09166731]
[1745264860176,0.24139619,87199.0,87198.0,0.09166731]
[1745264860803,0.01203577,87199.0,87198.0,0.09166731]
[1745264861004,0.01203577,87199.0,87198.0,0.32103036]
[1745264861207,0.22936042,87199.0,87198.0,0.09166731]
[1745264861411,0.01188696,87199.0,87198.0,0.09166731]
[1745264861956,0.22935845,87200.0,87198.0,0.09166731]
[1745264862142,0.22936042,87199.0,87198.0,0.04586731]
[1745264862285,0.24124738,87199.0,87198.0,0.04586731]
[1745264868079,0.01188696,87199.0,87198.0,0.04586731]
[1745264869214,0.24124738,87199.0,87198.0,0.04586731]
[1745264869412,0.01188696,87199.0,87198.0,0.27523036]
[1745264869618,0.01188696,87199.0,87198.0,0.04586731]
[1745264870184,0.24124738,87199.0,87198.0,0.04586731]
[1745264871243,0.01188696,87199.0,87198.0,0.04586731]
[1745264872346,0.22935904,87200.0,87198.0,0.04586731]
[1745264872567,0.24124738,87199.0,87198.0,0.04586731]
[1745264873991,0.01188696,87199.0,87198.0,0.04586731]
[1745264874149,0.01188696,87199.0,87198.0,0.27523036]
[1745264874355,0.25153828,87204.0,87203.0,0.04521824]
[1745264874585,0.03410116,87204.0,87203.0,0.04521824]
[1745264874982,0.25272508,87204.0,87203.0,0.04521824]
[1745264881629,0.24125772,87204.0,87203.0,0.04521824]
[1745264882731,0.24125772,87204.0,87203.0,0.32376814]
[1745264882732,0.01191045,87204.0,87203.0,0.32376814]
[1745264883081,0.30676777,87213.0,87212.0,0.27454447]
[1745264883283,0.30676777,87213.0,87212.0,0.48590041]
[1745264883500,0.31868331,87213.0,87212.0,0.49710776]
[1745264883692,0.30676777,87213.0,87212.0,0.49710776]
[1745264883911,0.31868331,87213.0,87212.0,0.49710776]
[1745264885692,0.31868331,87213.0,87212.0,0.51364861]
[1745264886106,0.31868331,87213.0,87212.0,0.51464861]
[1745264886279,0.31868331,87213.0,87212.0,0.93164861]
[1745264886490,0.31868331,87213.0,87212.0,0.93464861]
[1745264886691,0.30676777,87213.0,87212.0,0.93664861]
[1745264886911,0.30676777,87213.0,87212.0,0.93364861]
[1745264887118,0.30676777,87213.0,87212.0,0.93064861]
[1745264887346,0.30676777,87213.0,87212.0,0.93364861]
[1745264889051,0.30676777,87213.0,87212.0,0.93564861]
[1745264889262,0.1062622,87239.0,87238.0,0.27447613]
[1745264889553,0.00052149,87239.0,87238.0,0.27447613]
[1745264890153,0.00052149,87239.0,87238.0,0.32157613]
[1745264891408,0.00052149,87239.0,87238.0,0.43533207]
[1745264892039,0.00052149,87239.0,87238.0,0.44664541]
[1745264892648,0.00052149,87239.0,87238.0,0.44864541]
[1745264893317,0.00052149,87239.0,87238.0,0.44764541]
[1745264893468,0.00052149,87239.0,87238.0,0.44964541]
[1745264897411,0.00052149,87239.0,87238.0,1.27188626]
[1745264898198,0.00052149,87239.0,87238.0,1.26988626]
[1745264898401,0.00052149,87239.0,87238.0,1.27288626]
[1745264899350,0.00052149,87239.0,87238.0,1.27188626]
[1745264900253,0.00052149,87239.0,87238.0,1.27388626]
[1745264901637,0.00052149,87239.0,87238.0,1.25934541]
[1745264902554,0.00052149,87239.0,87238.0,0.74717613]
[1745264902970,0.00052149,87239.0,87238.0,0.69847613]
[1745264904102,0.00052149,87239.0,87238.0,0.69547613]
[1745264904827,0.00052149,87239.0,87238.0,0.69647613]
[1745264906907,0.00052149,87239.0,87238.0,0.27747613]
[1745264907111,0.00052149,87239.0,87238.0,0.40577292]
[1745264912740,0.00052149,87239.0,87238.0,0.82477292]
[1745264916075,0.00052149,87239.0,87238.0,0.81023207]
[1745264916524,0.00052149,87239.0,87238.0,0.69647613]
[1745264917462,0.00052149,87239.0,87238.0,0.69547613]
[1745264917707,0.00052149,87239.0,87238.0,0.69347613]
[1745264917923,0.00052149,87239.0,87238.0,0.69647613]
[1745264918294,0.00052149,87239.0,87238.0,0.69447613]
[1745264918700,0.00052149,87239.0,87238.0,0.27547613]
[1745264919590,0.00052149,87239.0,87238.0,0.27747613]
[1745264920885,0.00052149,87239.0,87238.0,0.39123207]
[1745264921091,0.00052149,87239.0,87238.0,0.43813207]
[1745264922077,0.00052149,87239.0,87238.0,0.43713207]
[1745264922295,0.00052149,87239.0,87238.0,0.43913207]
[1745264922472,0.00052149,87239.0,87238.0,0.43713207]
[1745264922893,0.00052149,87239.0,87238.0,0.44013207]
[1745264923339,0.00052149,87239.0,87238.0,0.43713207]
[1745264923476,0.00052149,87239.0,87238.0,0.43913207]
[1745264924029,0.00052149,87239.0,87238.0,0.39223207]
[1745264925342,0.00052149,87239.0,87238.0,0.27847613]
[1745264926129,0.00052149,87239.0,87238.0,0.27647613]
[1745264926346,0.00052149,87239.0,87238.0,0.27847613]
[1745264926722,0.00052149,87239.0,87238.0,0.27447613]
[1745264926960,0.00052149,87239.0,87238.0,0.27547613]
[1745264927207,0.00052149,87239.0,87238.0,0.27747613]
[1745264927412,0.22977675,87239.0,87238.0,0.04821824]
[1745264927597,0.27827675,87239.0,87238.0,0.04921824]
[1745264927734,0.28901162,87239.0,87238.0,0.004]
[1745264927942,0.28901162,87239.0,87238.0,0.04921824]
[1745264928368,0.28901162,87239.0,87238.0,0.04721824]
[1745264928593,0.28901162,87239.0,87238.0,0.04521824]
[1745264929811,0.28901162,87239.0,87238.0,0.04621824]
[1745264930310,0.28901162,87239.0,87238.0,0.04521824]
[1745264930716,0.28901162,87239.0,87238.0,0.04621824]
[1745264931362,0.28901162,87239.0,87238.0,0.001]
[1745264931536,0.28901162,87239.0,87238.0,0.04621824]
[1745264931966,0.29901162,87239.0,87238.0,0.04621824]
[1745264932723,0.29901162,87239.0,87238.0,0.001]
[1745264932916,0.34461162,87239.0,87238.0,0.001]
[1745264933540,0.22926052,87237.0,87236.0,0.04521824]
[1745264934104,0.23983134,87237.0,87236.0,0.04521824]
[1745264934380,0.2292684,87234.0,87233.0,0.04521824]
[1745264934757,0.23983752,87234.0,87233.0,0.04521824]
[1745264935565,0.22927103,87233.0,87232.0,0.04521824]
[1745264936088,0.23983959,87233.0,87232.0,0.04521824]
[1745264941659,0.01056856,87233.0,87232.0,0.2744919]
[1745264941867,0.24072477,87237.0,87232.0,0.04521824]
[1745264942140,0.25115682,87236.0,87234.0,0.04521824]
[1745264942587,0.0104303,87236.0,87235.0,0.04521824]
[1745264942785,0.0104303,87236.0,87235.0,0.32168401]
[1745264942898,0.00152149,87239.0,87238.0,0.27447613]
[1745264943103,0.00152149,87239.0,87238.0,0.28566418]
[1745264943512,0.00152149,87239.0,87238.0,0.39942012]
[1745264944125,0.00152149,87239.0,87238.0,0.40042012]
[1745264945295,0.00152149,87239.0,87238.0,0.39942012]
[1745264945650,0.00152149,87239.0,87238.0,0.40142012]
[1745264946041,0.00152149,87239.0,87238.0,0.40042012]
[1745264946244,0.00152149,87239.0,87238.0,0.40142012]
[1745264946544,0.00152149,87239.0,87238.0,0.40242012]
[1745264946743,0.00152149,87239.0,87238.0,0.40342012]
[1745264948874,0.23077675,87239.0,87238.0,0.04921824]
[1745264949030,0.24149786,87239.0,87238.0,0.04921824]
[1745264949407,0.24149786,87239.0,87238.0,0.04721824]
[1745264949597,0.0122426,87239.0,87238.0,0.27447613]
[1745264949840,0.0122426,87239.0,87238.0,0.27647613]
[1745264950046,0.00152149,87239.0,87238.0,0.27547613]
[1745264950648,0.0122426,87239.0,87238.0,0.27547613]
[1745264951188,0.00152149,87239.0,87238.0,0.27447613]
[1745264951509,0.00152149,87239.0,87238.0,0.27547613]
[1745264951964,0.00152149,87239.0,87238.0,0.27647613]
[1745264952376,0.00152149,87239.0,87238.0,0.27747613]
[1745264952590,0.00152149,87239.0,87238.0,0.27647613]
[1745264952730,0.00152149,87239.0,87238.0,0.27747613]
[1745264952931,0.00152149,87239.0,87238.0,0.27847613]
[1745264954546,0.00152149,87239.0,87238.0,0.27647613]
[1745264954747,0.00152149,87239.0,87238.0,0.39023207]
[1745264954993,0.00152149,87239.0,87238.0,0.43843207]
[1745264955189,0.00152149,87239.0,87238.0,0.44043207]
[1745264955426,0.00152149,87239.0,87238.0,0.45497292]
[1745264955618,0.00152149,87239.0,87238.0,0.45397292]
[1745264955855,0.00152149,87239.0,87238.0,0.49837292]
[1745264956060,0.00152149,87239.0,87238.0,0.50137292]
[1745264956389,0.00152149,87239.0,87238.0,0.49937292]
[1745264956830,0.00152149,87239.0,87238.0,0.49837292]
[1745264957230,0.0004222,87272.0,87269.0,0.24063516]
[1745264957431,0.0004222,87272.0,87271.0,0.27438944]
[1745264957625,0.00055895,87272.0,87271.0,0.27438944]
[1745264958307,0.01131957,87272.0,87271.0,0.27438944]
[1745264958533,0.24048814,87272.0,87271.0,0.04521824]
[1745264958710,0.24048814,87272.0,87271.0,0.04621824]
[1745264961411,0.29028814,87272.0,87271.0,0.04621824]
[1745264961614,0.29028814,87272.0,87271.0,0.04521824]
[1745264961754,0.24048814,87272.0,87271.0,0.04521824]
[1745264961979,0.24048814,87272.0,87271.0,0.04621824]
[1745264962482,0.24048814,87272.0,87271.0,0.04521824]
[1745264969306,0.01131957,87272.0,87271.0,0.04521824]
[1745264969505,0.01131957,87272.0,87271.0,0.27438944]
[1745264969884,0.01131957,87272.0,87271.0,0.04521824]
[1745264971326,0.24048814,87272.0,87271.0,0.04521824]
[1745264972525,0.24048814,87272.0,87270.0,0.04521824]
[1745264972526,0.2749712,87271.0,87270.0,0.04521824]
[1745264972732,0.55974682,87271.0,87270.0,0.04521824]
[1745264974059,0.44599088,87271.0,87270.0,0.04521824]
[1745264974495,0.40019088,87271.0,87270.0,0.04521824]
[1745264978004,0.51394682,87271.0,87270.0,0.04521824]
[1745264978569,0.2291817,87267.0,87266.0,0.04521824]
[1745264979061,0.24016466,87267.0,87266.0,0.04521824]
[1745264980064,0.22920281,87259.0,87258.0,0.04521824]
[1745264980287,0.01146,87260.0,87258.0,0.27442346]
[1745264980490,0.24065272,87263.0,87261.0,0.04521824]
[1745264980831,0.24065272,87263.0,87262.0,0.04521824]
[1745264982055,0.24065272,87263.0,87259.0,0.22920227]
[1745264982056,0.22919793,87261.0,87260.0,0.04521824]
[1745264983011,0.01145974,87262.0,87261.0,0.04521824]
[1745264983429,0.24065457,87262.0,87261.0,0.04521824]
[1745264984059,0.22919811,87261.0,87260.0,0.04521824]
[1745264985210,0.24065457,87262.0,87260.0,0.04521824]
[1745264985716,0.22919746,87261.0,87260.0,0.04521824]
[1745264985948,0.22919746,87261.0,87259.0,0.22973559]
[1745264985949,0.22920009,87260.0,87259.0,0.00053779]
[1745264986160,0.84295603,87260.0,87259.0,0.00053779]
[1745264986405,0.89678052,87260.0,87259.0,0.00053779]
[1745264986608,0.89678052,87260.0,87228.0,0.04521824]
[1745264986609,0.01146407,87229.0,87228.0,0.04521824]
[1745264986812,0.0114646,87225.0,87224.0,0.04521824]
[1745264987251,0.24075666,87225.0,87224.0,0.04521824]
[1745264988159,0.24075666,87225.0,87224.0,0.04531753]
[1745264989352,0.24075666,87225.0,87224.0,0.04631753]
[1745264989962,0.24075666,87225.0,87224.0,0.04531753]
[1745264990198,0.24075666,87225.0,87224.0,0.04631753]
[1745264990907,0.01061365,87225.0,87224.0,0.04631753]
[1745264991110,0.01146407,87229.0,87225.0,0.0114646]
[1745264991312,0.01146407,87229.0,87226.0,0.2292885]
[1745264991313,0.01061535,87228.0,87226.0,0.2292885]
[1745264991514,0.01061535,87228.0,87227.0,0.04521824]
[1745264992243,0.23989952,87228.0,87227.0,0.04521824]
[1745264992523,0.01061535,87228.0,87227.0,0.04521824]
[1745264992835,0.01061535,87228.0,87227.0,0.27450504]
[1745264993052,0.1042,87232.0,87231.0,0.27449452]
[1745264993255,0.0451,87254.0,87244.0,0.22924212]
[1745264993256,0.1042,87246.0,87244.0,0.22924212]
[1745264993453,0.1042,87246.0,87245.0,0.27445773]
[1745264993703,0.1042,87246.0,87244.0,0.22924212]
[1745264993704,0.61867321,87256.0,87253.0,0.04521824]
[1745264993900,0.34410528,87254.0,87253.0,0.04521824]
[1745264994105,0.11488943,87254.0,87253.0,0.04521824]
[1745264994602,0.1042,87254.0,87253.0,0.04521824]
[1745264994797,0.1042,87254.0,87253.0,0.27443671]
[1745264995022,0.10424557,87254.0,87253.0,0.27443671]
[1745264999004,4.557e-05,87254.0,87253.0,0.48639265]
[1745264999982,4.557e-05,87254.0,87253.0,0.48739265]
[1745265000404,4.557e-05,87254.0,87253.0,0.001]
[1745265000405,0.66396142,87254.0,87253.0,0.001]
[1745265000563,0.22925526,87239.0,87238.0,0.04521824]
[1745265000776,0.22925526,87239.0,87238.0,0.04421824]
[1745265000777,0.16,87239.0,87238.0,0.04421824]
[1745265001000,0.17077577,87239.0,87238.0,0.27347613]
[1745265001199,0.17077577,87239.0,87238.0,0.27447613]
[1745265001417,0.01068623,87253.0,87238.0,0.45057292]
[1745265001629,0.01068623,87253.0,87252.0,0.27343934]
[1745265002042,4.557e-05,87254.0,87252.0,0.27343934]
[1745265002272,4.557e-05,87254.0,87244.0,0.0114621]
[1745265002273,4.557e-05,87254.0,87253.0,0.04521824]
[1745265002446,0.00104557,87254.0,87253.0,0.04521824]
[1745265002648,0.0114625,87241.0,87240.0,0.04421824]
[1745265002863,0.0114625,87241.0,87238.0,0.001]
[1745265002864,0.22925526,87239.0,87238.0,0.001]
[1745265003116,1.00103968,87239.0,87238.0,0.001]
[1745265004021,0.22929206,87225.0,87224.0,0.04421824]
[1745265004195,0.353048,87225.0,87224.0,0.04321824]
[1745265004645,0.24074285,87230.0,87222.0,0.0008438]
[1745265004646,0.003,87239.0,87232.0,0.22927105]
[1745265004843,0.003,87239.0,87238.0,0.04321824]
[1745265005074,0.26716,87239.0,87238.0,0.04321824]
[1745265005217,0.26916,87239.0,87238.0,0.04321824]
[1745265005428,0.10720556,87239.0,87238.0,0.04321824]
[1745265005624,0.10820556,87239.0,87238.0,0.04321824]
[1745265005871,0.00204556,87239.0,87238.0,0.04321824]
[1745265006025,0.12002133,87239.0,87238.0,0.04321824]
[1745265008661,0.24072078,87238.0,87235.0,0.04321824]
[1745265008856,0.22926314,87236.0,87235.0,0.04321824]
[1745265009086,0.24005187,87236.0,87235.0,0.04321824]
[1745265009704,0.24005187,87236.0,87222.0,0.04406204]
[1745265009705,0.22929731,87223.0,87222.0,0.04406204]
[1745265009863,0.0114646,87225.0,87224.0,0.04321824]
[1745265010268,0.22929149,87226.0,87224.0,0.04321824]
[1745265010478,0.22929149,87226.0,87225.0,0.04321824]
[1745265010675,0.01146434,87227.0,87225.0,0.04321824]
[1745265010874,0.01146434,87227.0,87226.0,0.04321824]
[1745265011364,0.22928943,87226.0,87225.0,0.04321824]
[1745265011567,0.22929731,87223.0,87222.0,0.0008438]
[1745265011765,0.22929731,87223.0,87222.0,0.04406204]
[1745265012592,0.33349731,87223.0,87222.0,0.04406204]
[1745265012791,0.22929468,87224.0,87223.0,0.04321824]
[1745265012998,0.33345468,87224.0,87223.0,0.04321824]
[1745265013380,0.22929468,87224.0,87223.0,0.04321824]
[1745265013594,0.33345468,87224.0,87223.0,0.04321824]
[1745265014201,0.10416,87224.0,87223.0,0.04321824]
[1745265014421,0.33345468,87224.0,87223.0,0.04321824]
[1745265017314,0.10416,87224.0,87223.0,0.04321824]
[1745265017489,0.33345468,87224.0,87223.0,0.04321824]
[1745265018699,0.10416,87224.0,87223.0,0.04321824]
[1745265019057,0.33345468,87224.0,87223.0,0.04321824]
[1745265020386,0.22929731,87223.0,87222.0,0.0008438]
[1745265020601,1.30755325,87223.0,87222.0,0.0008438]
[1745265020805,1.31792568,87223.0,87222.0,0.0008438]
[1745265021845,1.31892568,87223.0,87222.0,0.0008438]
[1745265022201,1.31992568,87223.0,87222.0,0.0008438]
[1745265022632,1.32192568,87223.0,87222.0,0.0008438]
[1745265024266,1.42608568,87223.0,87222.0,0.0008438]
[1745265024827,1.26372974,87223.0,87222.0,0.0008438]
[1745265025122,0.43027243,87223.0,87222.0,0.04406204]
[1745265025537,0.43027243,87223.0,87222.0,0.27336198]
[1745265025751,0.01237243,87223.0,87222.0,0.27336198]
[1745265025961,0.002,87223.0,87222.0,0.40265877]
[1745265026177,0.24069945,87246.0,87238.0,0.27247613]
[1745265026382,0.01146144,87249.0,87238.0,0.27247613]
[1745265026771,0.01146158,87248.0,87238.0,0.27247613]
[1745265027485,0.01146066,87255.0,87238.0,0.27247613]
[1745265027486,0.22919875,87261.0,87238.0,0.27247613]
[1745265027627,0.01188049,87273.0,87238.0,0.83627292]
[1745265027852,0.0004222,87273.0,87271.0,0.04321824]
[1745265028045,0.00050059,87272.0,87271.0,0.04321824]
[1745265028240,0.01065801,87272.0,87271.0,0.04321824]
[1745265028889,0.01165801,87272.0,87271.0,0.04550967]
[1745265029097,0.00250059,87272.0,87271.0,0.04550967]
[1745265029312,0.00150059,87272.0,87271.0,0.04550967]
[1745265029684,0.00150059,87272.0,87271.0,0.04321824]
[1745265029948,0.00150059,87272.0,87271.0,0.04550966]
[1745265030125,0.00050059,87272.0,87271.0,0.04550966]
[1745265030506,0.00050059,87272.0,87271.0,0.04650966]
[1745265030933,0.00050059,87272.0,87271.0,0.04421824]
[1745265031249,0.00050059,87272.0,87271.0,0.04650965]
[1745265031467,0.00050059,87272.0,87271.0,0.04750965]
[1745265036082,0.00050059,87272.0,87271.0,0.17580645]
[1745265036284,0.00050059,87272.0,87271.0,0.17351503]
[1745265037284,0.00050059,87272.0,87271.0,0.15897418]
[1745265040985,0.00050059,87272.0,87271.0,0.38814538]
[1745265046015,0.00050059,87272.0,87271.0,0.40921633]
[1745265048194,0.00050059,87272.0,87271.0,0.40821633]
[1745265048396,0.00050059,87272.0,87271.0,0.40921633]
[1745265049391,0.00050059,87272.0,87271.0,0.41021633]
[1745265051279,0.00050059,87272.0,87271.0,1.23145718]
[1745265051484,0.002,87279.0,87271.0,1.23145718]
[1745265051485,0.002,87279.0,87273.0,0.62692504]
[1745265051769,0.00087795,87274.0,87273.0,0.74068098]
[1745265052970,0.00087795,87274.0,87273.0,0.74168098]
[1745265053370,0.00087795,87274.0,87273.0,0.74368098]
[1745265054323,0.00087795,87274.0,87273.0,0.38914013]
[1745265055080,0.00087795,87274.0,87273.0,0.41033559]
[1745265056463,0.00087795,87274.0,87273.0,0.42487644]
[1745265059218,0.00087795,87274.0,87273.0,0.40368098]
[1745265060380,0.00087795,87274.0,87273.0,0.38914013]
[1745265061754,0.00087795,87274.0,87273.0,0.40368098]
[1745265066059,0.00087795,87274.0,87273.0,0.42496078]
[1745265069496,0.00087795,87274.0,87273.0,0.41041993]
[1745265070289,0.00087795,87274.0,87273.0,0.0242798]
[1745265070489,0.00087795,87274.0,87273.0,0.003]
[1745265070490,0.23004127,87274.0,87273.0,0.003]
[1745265070693,0.29568431,87274.0,87273.0,0.04621824]
[1745265070894,0.30568431,87274.0,87273.0,0.003]
[1745265071432,0.30568431,87274.0,87273.0,0.02431425]
[1745265071832,0.30568431,87274.0,87273.0,0.06653249]
[1745265072171,0.30568431,87274.0,87273.0,0.06453249]
[1745265072373,0.30568431,87274.0,87273.0,0.02231425]
[1745265072630,0.30668431,87274.0,87273.0,0.06553249]
[1745265072989,0.30668431,87274.0,87273.0,0.06453249]
[1745265073191,0.30768431,87274.0,87273.0,0.06453249]
[1745265073553,0.30668431,87274.0,87273.0,0.06453249]
[1745265074113,0.30768431,87274.0,87273.0,0.06453249]
[1745265074810,0.29768431,87274.0,87273.0,0.06453249]
[1745265075476,0.30768431,87274.0,87273.0,0.06453249]
[1745265075678,0.30768431,87274.0,87273.0,0.02131425]
[1745265075895,0.76144025,87274.0,87273.0,0.02131425]
[1745265076350,0.56916857,87272.0,87271.0,0.002]
[1745265076553,0.7234264,87272.0,87271.0,0.002]
[1745265078276,0.7244264,87272.0,87271.0,0.002]
[1745265078887,0.7264264,87272.0,87271.0,0.002]
[1745265079301,0.7254264,87272.0,87271.0,0.002]
[1745265079649,0.7264264,87272.0,87271.0,0.002]
[1745265079934,1.1423264,87272.0,87271.0,0.002]
[1745265090587,1.1885264,87272.0,87271.0,0.002]
[1745265090993,1.1885264,87272.0,87254.0,0.04321824]
[1745265090994,0.22921322,87255.0,87254.0,0.04321824]
[1745265091171,0.22921322,87255.0,87254.0,0.04421824]
[1745265091172,0.26954552,87255.0,87254.0,0.04421824]
[1745265092294,0.81630146,87255.0,87254.0,0.001]
[1745265093466,0.81630146,87255.0,87254.0,0.002]
[1745265093609,0.81630146,87255.0,87254.0,0.001]
[1745265094825,0.81630146,87255.0,87236.0,0.000844]
[1745265094826,0.22925789,87238.0,87236.0,0.000844]
[1745265095028,0.85318223,87238.0,87236.0,0.000844]
[1745265096154,0.86182796,87238.0,87237.0,0.00092239]
[1745265096357,0.86282796,87238.0,87237.0,0.00092239]
[1745265098109,0.1711684,87238.0,87237.0,0.04414063]
[1745265098318,0.0211684,87238.0,87237.0,0.04414063]
[1745265098488,0.0211684,87238.0,87237.0,0.09274063]
[1745265098688,0.001,87238.0,87237.0,0.255289]
[1745265098896,0.001,87238.0,87237.0,0.60753742]
[1745265099092,0.001,87255.0,87254.0,0.31793409]
[1745265099297,0.001,87255.0,87254.0,0.57275473]
[1745265100509,0.001,87255.0,87254.0,0.57575473]
[1745265101160,0.001,87255.0,87254.0,0.48529003]
[1745265101669,0.001,87255.0,87254.0,0.48829003]
[1745265102220,0.24104388,87274.0,87273.0,0.04321824]
[1745265102421,0.25925401,87274.0,87273.0,0.04321824]
[1745265103243,0.01863233,87274.0,87273.0,0.27238419]
[1745265103450,0.00087795,87274.0,87273.0,0.27238419]
[1745265103652,0.00087795,87274.0,87273.0,0.27338419]
[1745265104269,0.00087795,87274.0,87273.0,0.38714013]
[1745265104470,0.00087795,87274.0,87273.0,0.43264013]
[1745265105790,0.00087795,87274.0,87273.0,0.43164013]
[1745265106240,0.00087795,87274.0,87273.0,0.43264013]
[1745265106862,0.00087795,87274.0,87273.0,0.43464013]
[1745265107300,0.00087795,87274.0,87273.0,0.04621824]
[1745265107722,0.01914154,87274.0,87273.0,0.04621824]
[1745265107964,0.00087795,87274.0,87273.0,0.04621824]
[1745265108168,0.01914154,87274.0,87273.0,0.04621824]
[1745265108365,0.00087795,87274.0,87273.0,0.04621824]
[1745265108564,0.01914154,87274.0,87273.0,0.04621824]
[1745265108768,0.00087795,87274.0,87273.0,0.04421824]
[1745265108996,0.24830486,87274.0,87273.0,0.04321824]
[1745265109210,0.23004127,87274.0,87273.0,0.04421824]
[1745265109433,0.24830486,87274.0,87273.0,0.04421824]
[1745265110062,0.24830486,87274.0,87273.0,0.04521824]
[1745265110519,0.24830486,87274.0,87273.0,0.04421824]
[1745265110708,0.24830486,87274.0,87273.0,0.04321824]
[1745265110926,0.24830486,87274.0,87268.0,0.04321824]
[1745265110927,0.22917382,87270.0,87268.0,0.04321824]
[1745265111129,0.22917382,87270.0,87269.0,0.04321824]
[1745265111275,0.22917382,87270.0,87265.0,0.04321824]